[Event "15th Vandoeuvre Open 2019"]
[Site "Vandoeuvre-les-Nancy"]
[Date "2019.01.06"]
[Round "9"]
[White "Leriche, Ines"]
[Black "Francois, Gwladys"]
[Result "1/2-1/2"]
[ECO "E42"]
[WhiteElo "1917"]
[BlackElo "1834"]
[Annotator "NA"]
[PlyCount "85"]
[EventDate "2019.01.02"]
[EventType "swiss"]
[EventCountry "FRA"]
[SourceTitle "playchess.com"]
[Source "ChessBase"]
[SourceQuality "1"]
[TimeControl "5400+30"]

1. d4 {[%emt 0:00:00]} Nf6 {[%emt 0:00:12]} 2. c4 {[%emt 0:00:00]} e6 {[%emt 0:01:15]} 3. Nc3 {[%emt 0:00:08]} Bb4 {[%emt 0:01:16]} 4. e3 {[%emt 0:00:20]} c5 {[%emt 0:02:07]} 5. Nge2 {[%emt 1:32:02]} Ne4 {[%emt 1:27:40]} 6. a3 {[%emt 0:00:30]} Qf6 {[%emt 0:00:30]} 7. f3 {[%emt 0:00:30]} Nxc3 {[%emt 0:00:30]} 8. Nxc3 {[%emt 0:00:00]} Bxc3+ {[%emt 0:00:00]} 9. bxc3 {[%emt 0:00:00]} O-O {[%emt 0:00:00]} 10. Qc2 {[%emt 0:01:30]} d6 {[%emt 0:01:30]} 11. Bd3 {[%emt 0:00:30]} h6 {[%emt 0:00:00]} 12. O-O {[%emt 0:00:00]} Nc6 {[%emt 0:00:00]} 13. Bd2 {[%emt 0:00:00]} Qe7 {[%emt 0:00:00]} 14. f4 {[%emt 0:00:00]} f5 {[%emt 0:00:00]} 15. d5 {[%emt 0:00:00]} Na5 {[%emt 0:00:00]} 16. Rae1 {[%emt 0:00:00]} Qf7 {[%emt 0:00:00]} 17. e4 {[%emt 0:03:00]} b6 {[%emt 0:00:00]} 18. Rf3 {[%emt 0:00:30]} exd5 {[%emt 0:04:00]} 19. exd5 {[%emt 0:00:00]} Ba6 {[%emt 0:00:00]} 20. Rfe3 {[%emt 0:00:00]} Bxc4 {[%emt 0:00:00]} 21. Bxc4 {[%emt 0:00:00]} Nxc4 {[%emt 0:00:00]} 22. Re6 {[%emt 0:02:00]} Rfe8 {[%emt 0:00:00]} 23. Bc1 {[%emt 0:00:00]} Rxe6 {[%emt 0:00:00]} 24. dxe6 {[%emt 0:00:00]} Qf6 {[%emt 0:00:00]} 25. Qd3 {[%emt 0:00:00]} b5 {[%emt 0:00:00]} 26. Qd5 {[%emt 0:00:36]} Re8 {[%emt 0:00:00]} 27. a4 {[%emt 0:00:15]} Qxc3 {[%emt 0:00:00]} 28. e7+ {[%emt 0:01:31]} Kh8 {[%emt 0:00:00]} 29. Qe6 {[%emt 0:00:36]} Nb6 {[%emt 0:00:00]} 30. Bb2 {[%emt 0:00:30]} Qxb2 {[%emt 0:00:00]} 31. Qf7 {[%emt 0:00:07]} Qd4+ {[%emt 0:00:00]} 32. Kh1 {[%emt 0:00:20]} Rxe7 {[%emt 0:00:00]} 33. Qxe7 {[%emt 0:00:02]} Qxf4 {[%emt 0:00:00]} 34. axb5 {[%emt 0:00:39]} Qf2 {[%emt 0:00:00]} 35. h3 {[%emt 0:00:14]} Nd5 {[%emt 0:00:00]} 36. Qf8+ {[%emt 0:01:33]} Kh7 {[%emt 0:00:00]} 37. Re8 {[%emt 0:00:34]} Qf1+ {[%emt 0:00:00]} 38. Kh2 {[%emt 0:00:01]} Qf4+ {[%emt 0:00:00]} 39. Kh1 {[%emt 0:00:36]} Qf1+ {[%emt 0:03:02]} 40. Kh2 {[%emt 0:00:11]} Qf4+ {[%emt 0:00:08]} 41. Kh1 {[%emt 0:00:05]} Qf1+ {[%emt 0:00:06]} 42. Kh2 {[%emt 0:00:13]} Qf2 {[%emt 0:08:44]} 43. Qg8+ {[%emt 0:02:27] Nf4} 1/2-1/2

[Event "15th Vandoeuvre Open 2019"]
[Site "Vandoeuvre-les-Nancy"]
[Date "2019.01.06"]
[Round "9"]
[White "Venard, Gautier"]
[Black "Leccia, Antoine"]
[Result "1-0"]
[ECO "A40"]
[WhiteElo "1897"]
[BlackElo "1696"]
[Annotator "NA"]
[PlyCount "65"]
[EventDate "2019.01.02"]
[EventType "swiss"]
[EventCountry "FRA"]
[SourceTitle "playchess.com"]
[Source "ChessBase"]
[SourceQuality "1"]
[TimeControl "5400+30"]

1. c4 {[%emt 0:00:41]} e6 {[%emt 0:00:23]} 2. d4 {[%emt 0:01:17]} b6 {[%emt 0:01:16]} 3. g3 {[%emt 0:04:52]} Bb7 {[%emt 0:02:08]} 4. Nf3 {[%emt 0:00:09]} Bb4+ {[%emt 0:01:55]} 5. Bd2 {[%emt 0:02:27]} Bxf3 {[%emt 0:01:41]} 6. exf3 {[%emt 0:00:48]} Bxd2+ {[%emt 0:01:00]} 7. Qxd2 {[%emt 0:03:30]} d5 {[%emt 0:01:06]} 8. cxd5 {[%emt 0:13:07]} exd5 {[%emt 0:06:35]} 9. Bg2 {[%emt 0:00:52]} Ne7 {[%emt 0:02:07]} 10. O-O {[%emt 0:00:11]} O-O {[%emt 0:01:14]} 11. Nc3 {[%emt 0:02:50]} Nd7 {[%emt 0:05:14]} 12. Rac1 {[%emt 1:05:16]} Rc8 {[%emt 1:11:21]} 13. b4 {[%emt 0:00:30]} c6 {[%emt 0:00:00]} 14. a4 {[%emt 0:00:00]} Nf6 {[%emt 0:00:00]} 15. f4 {[%emt 0:01:00]} Qd6 {[%emt 0:00:00]} 16. b5 {[%emt 0:00:30]} c5 {[%emt 0:02:00]} 17. dxc5 {[%emt 0:00:00]} bxc5 {[%emt 0:00:30]} 18. Ne4 {[%emt 0:01:00]} Nxe4 {[%emt 0:00:00]} 19. Bxe4 {[%emt 0:00:00]} Rfd8 {[%emt 0:00:00]} 20. Rfd1 {[%emt 0:01:00]} d4 {[%emt 0:01:30]} 21. Qa5 {[%emt 0:00:30]} Qb6 {[%emt 0:00:00]} 22. Qxb6 {[%emt 0:00:00]} axb6 {[%emt 0:00:00]} 23. a5 {[%emt 0:01:00]} Nd5 {[%emt 0:00:00]} 24. Bxd5 {[%emt 0:00:00]} Rxd5 {[%emt 0:00:00]} 25. a6 {[%emt 0:01:00]} Rd7 {[%emt 0:00:00]} 26. f5 {[%emt 0:00:00]} Kf8 {[%emt 0:00:00]} 27. Kg2 {[%emt 0:01:00]} Ke7 {[%emt 0:00:00]} 28. Kf3 {[%emt 0:00:00]} Kd6 {[%emt 0:04:00]} 29. Rxd4+ {[%emt 0:01:00]} cxd4 {[%emt 0:00:00]} 30. Rxc8 {[%emt 0:00:00]} Kd5 {[%emt 0:00:00]} 31. Ke2 {[%emt 0:01:00]} f6 {[%emt 0:00:00]} 32. Kd3 {[%emt 0:00:30]} Ke5 {[%emt 0:02:00]} 33. Rc6 {[%emt 0:00:00]} 1-0

[Event "15th Vandoeuvre Open 2019"]
[Site "Vandoeuvre-les-Nancy"]
[Date "2019.01.06"]
[Round "9"]
[White "Godde, Matthias"]
[Black "Battistella, Valentin"]
[Result "0-1"]
[ECO "C10"]
[WhiteElo "1881"]
[BlackElo "1882"]
[Annotator "NA"]
[PlyCount "56"]
[EventDate "2019.01.02"]
[EventType "swiss"]
[EventCountry "FRA"]
[SourceTitle "playchess.com"]
[Source "ChessBase"]
[SourceQuality "1"]
[TimeControl "5400+30"]

1. d4 {[%emt 0:00:00]} Nf6 {[%emt 0:00:00]} 2. Nf3 {[%emt 0:00:00]} e6 {[%emt 0:00:18]} 3. e3 {[%emt 0:00:08]} d5 {[%emt 0:03:04]} 4. Bd3 {[%emt 0:00:06]} Bd6 {[%emt 0:00:16]} 5. O-O {[%emt 0:00:15]} Nbd7 {[%emt 0:00:13]} 6. Nbd2 {[%emt 0:03:04]} b6 {[%emt 0:03:37]} 7. e4 {[%emt 0:03:23]} dxe4 {[%emt 0:00:16]} 8. Nxe4 {[%emt 0:00:17]} Be7 {[%emt 0:02:48]} 9. Re1 {[%emt 0:12:25]} Bb7 {[%emt 0:00:57]} 10. Ng3 {[%emt 0:09:13]} O-O {[%emt 0:01:22]} 11. Qe2 {[%emt 0:08:43]} c5 {[%emt 0:04:06]} 12. Be3 {[%emt 0:04:59]} Qc7 {[%emt 0:09:12]} 13. Rad1 {[%emt 0:53:57]} Rfe8 {[%emt 0:11:49]} 14. c3 {[%emt 0:00:00]} Rad8 {[%emt 0:11:44]} 15. Ng5 {[%emt 0:00:00]} h6 {[%emt 0:04:56]} 16. N5e4 {[%emt 0:00:00]} Nxe4 {[%emt 0:11:18]} 17. Nxe4 {[%emt 0:00:00]} f5 {[%emt 0:03:19]} 18. Ng3 {[%emt 0:00:00]} f4 {[%emt 0:00:36]} 19. Qg4 {[%emt 0:00:00]} fxe3 {[%emt 0:10:14]} 20. Qxe6+ {[%emt 0:00:00]} Kh8 {[%emt 0:01:00]} 21. Rxe3 {[%emt 0:00:00]} Nf8 {[%emt 0:01:45]} 22. Qh3 {[%emt 0:00:00]} Bg5 {[%emt 0:05:03]} 23. Rxe8 {[%emt 0:00:00]} Rxe8 {[%emt 0:00:02]} 24. Bf5 {[%emt 0:05:30]} Qe7 {[%emt 0:14:05]} 25. d5 {[%emt 0:00:30]} g6 {[%emt 0:00:30]} 26. d6 {[%emt 0:00:30]} Qe5 {[%emt 0:00:00]} 27. Bd7 {[%emt 0:00:00]} Rd8 {[%emt 0:00:00]} 28. f4 {[%emt 0:00:00]} Bxf4 {[%emt 0:00:00]} 0-1

[Event "15th Vandoeuvre Open 2019"]
[Site "Vandoeuvre-les-Nancy"]
[Date "2019.01.06"]
[Round "9"]
[White "Paternoster, Thibaud"]
[Black "Rauta, Nicolas"]
[Result "1-0"]
[ECO "E54"]
[WhiteElo "1879"]
[BlackElo "1904"]
[Annotator "NA"]
[PlyCount "73"]
[EventDate "2019.01.02"]
[EventType "swiss"]
[EventCountry "FRA"]
[SourceTitle "playchess.com"]
[Source "ChessBase"]
[SourceQuality "1"]
[TimeControl "5400+30"]

1. e4 {[%emt 0:00:00]} c6 {[%emt 0:00:00]} 2. d4 {[%emt 0:05:18]} d5 {[%emt 0:00:13]} 3. exd5 {[%emt 0:00:08]} cxd5 {[%emt 0:00:03]} 4. c4 {[%emt 0:00:07]} dxc4 {[%emt 0:00:06]} 5. Bxc4 {[%emt 0:00:22]} Nf6 {[%emt 0:00:05]} 6. Nf3 {[%emt 0:00:08]} e6 {[%emt 0:00:06]} 7. O-O {[%emt 0:00:38]} Be7 {[%emt 0:00:09]} 8. Nc3 {[%emt 0:00:12]} O-O {[%emt 0:00:14]} 9. a3 {[%emt 0:01:34]} a6 {[%emt 0:00:27]} 10. d5 {[%emt 0:16:25]} Qc7 {[%emt 0:09:17]} 11. Qe2 {[%emt 0:02:38]} b5 {[%emt 0:04:53]} 12. Bb3 {[%emt 0:03:31]} exd5 {[%emt 0:01:39]} 13. Nxd5 {[%emt 0:00:21]} Nxd5 {[%emt 0:00:07]} 14. Bxd5 {[%emt 0:00:04]} Bb7 {[%emt 0:00:09]} 15. Bf4 {[%emt 0:05:22]} Qd7 {[%emt 0:03:42]} 16. Bxb7 {[%emt 0:01:52]} Qxb7 {[%emt 0:00:03]} 17. Rac1 {[%emt 0:00:10]} Nc6 {[%emt 0:09:48]} 18. Rxc6 {[%emt 0:04:21]} Qxc6 {[%emt 0:02:24]} 19. Qxe7 {[%emt 0:00:06]} Rfe8 {[%emt 0:01:44]} 20. Qd6 {[%emt 0:01:27]} Qe4 {[%emt 0:00:47]} 21. Be3 {[%emt 0:01:45]} h6 {[%emt 0:00:53]} 22. Qf4 {[%emt 0:02:46]} Qd5 {[%emt 0:01:09]} 23. Qd4 {[%emt 0:03:45]} Qf5 {[%emt 0:00:44]} 24. h3 {[%emt 0:01:49]} Re6 {[%emt 0:04:07]} 25. Rd1 {[%emt 0:00:29]} Rae8 {[%emt 0:00:28]} 26. Qd5 {[%emt 0:02:06]} Qf6 {[%emt 0:04:22]} 27. Bd4 {[%emt 0:03:28]} Qg6 {[%emt 0:00:50]} 28. Bc3 {[%emt 0:00:10]} Re2 {[%emt 0:12:19]} 29. Rd4 {[%emt 0:07:17]} Qe6 {[%emt 0:06:59]} 30. Qh5 {[%emt 0:08:58]} Re4 {[%emt 0:05:01]} 31. Qd5 {[%emt 0:07:02]} Re2 {[%emt 0:08:34]} 32. Qxe6 {[%emt 0:00:39]} R2xe6 {[%emt 0:00:10]} 33. Rd5 {[%emt 0:00:33]} g6 {[%emt 0:01:24]} 34. Nd4 {[%emt 0:00:25]} Rb6 {[%emt 0:01:04]} 35. g3 {[%emt 0:01:46]} h5 {[%emt 0:02:14]} 36. Ba5 {[%emt 0:00:12]} Rf6 {[%emt 0:01:06]} 37. Bd8 {[%emt 0:00:08]} 1-0